fUSD/lending_fUSD_20240923
["ID","MTS","AMOUNT","RATE_DAILY","PERIOD"]
[338906062,1727053837473,-14455.66061,0.00013,2]
[338906063,1727053837484,-5200.0,0.00013,2]
[338906064,1727053837530,-49013.79547425,0.00013,2]
[338906065,1727053837543,-11640.76027901,0.00013,2]
[338906066,1727053837555,-22537.18002361,0.00013,2]
[338906067,1727053837565,-434.50679442,0.00013,2]
[338906068,1727053837576,-2243.70523742,0.00013,2]
[338906069,1727053837587,-450.95372915,0.00013,2]
[338906070,1727053837646,-13978.90000243,0.00013,2]
[338906071,1727053837660,-1572.96443066,0.00013,2]
[338906072,1727053837707,-1079.34910173,0.00013,2]
[338906073,1727053837718,-882.6,0.00013,2]
[338906074,1727053837730,-796.44791203,0.00013,2]
[338906075,1727053837771,-515.37635187,0.00013,2]
[338906076,1727053837783,-3060.15071266,0.00013,2]
[338906077,1727053837833,-618.75914436,0.00013,2]
[338906078,1727053837846,-914.81898883,0.00013,2]
[338906083,1727053839419,-908.06234857,0.00013,2]
[338906084,1727053839481,-5184.20181618,0.00013,2]
[338906085,1727053839492,-2557.73934981,0.00013,2]
[338906086,1727053839600,-84827.94702213,0.00013,2]
[338906087,1727053839611,-38671.39032521,0.00013,2]
[338906088,1727053839662,-1661.96238067,0.00013,2]
[338906089,1727053839673,-1262.25643233,0.00013,2]
[338906090,1727053839687,-2595.40572963,0.00013,2]
[338906091,1727053839698,-941.92336188,0.00013,2]
[338906133,1727053842409,-2615.89445714,0.00013,2]
[338906134,1727053842695,-1005.09895439,0.00013,2]
[338906135,1727053842707,-193972.14219604,0.00013,2]
[338906136,1727053842716,-1195247.79516555,0.00013,2]
[338906141,1727053845368,-1304.23596371,0.00013,2]
[338906142,1727053845430,-49951.04931168,0.00013,2]
[338906143,1727053845547,-3724.40991871,0.00013,2]
[338906144,1727053845672,-5295.7,0.00013,2]
[338906145,1727053845684,-49883.19999998,0.00013,2]
[338906146,1727053845695,-311.36819876,0.00013,2]
[338906147,1727053845706,-2207.09904118,0.00013,2]
[338906148,1727053943564,500.0,0.00010663,2]
[338906149,1727053947577,500.0,0.00010663,2]
[338906150,1727053960373,800.648877,0.00022,120]
[338906151,1727054104702,355.93,0.00012026,2]
[338906152,1727054180333,1000.0,0.0001201,2]
[338906153,1727054194052,158.01,0.00010959,2]
[338906154,1727054224209,201.77269143,0.00012,2]
[338906155,1727054230885,234.57,0.00011985,2]
[338906156,1727054251663,170.1,0.00011985,2]
[338906157,1727054349804,203.92,0.00011973,2]
[338906158,1727054393701,500.0,0.00010663,2]
[338906159,1727054412278,155.30413884,0.00012,2]
[338906160,1727054412906,293.29,0.00010033,2]
[338906161,1727054439248,500.0,0.00010663,2]
[338906162,1727054454316,1000.0,0.00011951,2]
[338906163,1727054496142,250.0,0.00011894,2]
[338906164,1727054556544,150.0,0.0001188,2]
[338906165,1727054621047,347.3503,0.00012,2]
[338906166,1727054705685,299.17704059,0.00011688,2]
[338906167,1727054708060,242.45825038,0.00011688,2]
[338906168,1727054716312,199.81907282,0.00011688,2]
[338906169,1727054722427,1050.0,0.00011,2]
[338906170,1727054727974,160.87,0.00010959,2]
[338906171,1727054741681,196.0,0.00011688,2]
[338906191,1727054787250,1000.0,0.00011876,2]
[338906192,1727054820469,500.0,0.00021999,120]
[338906193,1727054820707,500.0,0.00021999,120]
[338906194,1727054821067,500.0,0.00021999,120]
[338906195,1727054821377,500.0,0.00021999,120]
[338906196,1727054821677,500.0,0.00021999,120]
[338906197,1727054821993,500.0,0.00021999,120]
[338906198,1727054822288,500.0,0.00021999,120]
[338906199,1727054822904,500.0,0.00021999,120]
[338906200,1727054823182,500.0,0.00021999,120]
[338906201,1727054823473,500.0,0.00021999,120]
[338906202,1727054823755,500.0,0.00021999,120]
[338906203,1727054824077,500.0,0.00021999,120]
[338906204,1727054824383,500.0,0.00021999,120]
[338906205,1727054824851,500.0,0.00021999,120]
[338906206,1727054825157,500.0,0.00021999,120]
[338906207,1727054825477,303.83362868,0.00021999,120]
[338906301,1727054867056,749.49,0.00010959,2]
[338906302,1727054878525,193.96,0.00011904,2]
[338906303,1727054931067,294.85,9.979e-05,2]
[338906304,1727054970538,4993.20951694,0.00011983,2]
[338906306,1727055000930,572.91738739,0.00021999,120]
[338906307,1727055001038,203.92,0.00011868,2]
[338906308,1727055005467,500.0,0.00021999,120]
[338906309,1727055005734,481.7579327,0.00021999,120]
[338906311,1727055014252,150.34,0.00011799,2]
[338906312,1727055026669,209.61455484,0.00021999,120]
[338906325,1727055031675,-150.0,0.00012079,2]
[338906326,1727055031684,-300.0,0.00012079,2]
[338906327,1727055031694,-996.52809512,0.0001208,2]
[338906329,1727055031706,-365292.73553429,0.0001208,2]
[338906331,1727055031715,-526.48493741,0.00012083,2]
[338906333,1727055031724,-4993.20951687,0.00012085,2]
[338906334,1727055031733,-934.17,0.000121,2]
[338906335,1727055031742,-4993.20951687,0.00012187,2]
[338906336,1727055031751,-294.85,0.00012242,2]
[338906337,1727055031760,-4993.20951687,0.00012289,2]
[338906338,1727055031771,-4993.20951687,0.00012391,2]
[338906339,1727055031780,-5881.019,0.00012429,2]
[338906340,1727055031788,-626.589,0.00012429,2]
[338906341,1727055031798,-150.744,0.00012429,2]
[338906342,1727055031807,-1552.784,0.00012429,2]
[338906343,1727055031817,-1265.163,0.00012429,2]
[338906344,1727055031826,-449.166,0.00012429,2]
[338906345,1727055031835,-932.0,0.0001245,2]
[338906346,1727055031844,-809.0,0.0001245,2]
[338906347,1727055031853,-558.0,0.0001245,2]
[338906348,1727055031862,-553.0,0.0001245,2]
[338906349,1727055031872,-1903.0,0.0001245,2]
[338906350,1727055031881,-260.155,0.0001245,2]
[338906351,1727055031890,-3346.0,0.0001245,2]
[338906352,1727055031899,-1913.0,0.0001245,2]
[338906353,1727055031908,-806.0,0.0001245,2]
[338906354,1727055031918,-1080.0,0.0001245,2]
[338906355,1727055031927,-4993.20951687,0.00012492,2]
[338906356,1727055031936,-4993.20951687,0.00012594,2]
[338906357,1727055031945,-4993.20951687,0.00012696,2]
[338906358,1727055031955,-150.0,0.00012736,2]
[338906359,1727055031964,-150.0,0.00012753,2]
[338906360,1727055031973,-150.0,0.00012757,2]
[338906361,1727055031982,-4993.20951687,0.00012798,2]
[338906362,1727055031992,-304.11183136,0.000128,2]
[338906363,1727055032001,-150.0,0.00012809,2]
[338906364,1727055032010,-477.08,0.00012809,2]
[338906365,1727055032021,-499.99,0.00012809,2]
[338906366,1727055032030,-1523.2,0.00012809,2]
[338906367,1727055032039,-155.0,0.0001284,2]
[338906368,1727055032048,-150.0,0.00012862,2]
[338906369,1727055032057,-1511.47,0.0001287,2]
[338906370,1727055032066,-521.27,0.0001287,2]
[338906371,1727055032075,-174.876,0.0001287,2]
[338906372,1727055032084,-5800.0,0.00012875,2]
[338906373,1727055032094,-150.0,0.00012878,2]
[338906374,1727055032103,-5800.0,0.00012883,2]
[338906375,1727055032112,-150.0,0.00012884,2]
[338906376,1727055032121,-155.78,0.00012889,2]
[338906377,1727055032130,-5800.0,0.00012891,2]
[338906378,1727055032139,-200.0,0.00012896,2]
[338906379,1727055032147,-150.0,0.00012897,2]
[338906380,1727055032157,-85512.11328911,0.00012899,2]
[338906381,1727055032166,-11567.3854,0.000129,2]
[338906382,1727055032175,-3923.2349,0.000129,2]
[338906383,1727055032184,-168.3827,0.000129,2]
[338906384,1727055032193,-5800.0,0.000129,2]
[338906385,1727055032202,-164.52047892,0.000129,2]
[338906386,1727055032211,-159.38136408,0.000129,2]
[338906387,1727055032221,-150.0,0.000129,2]
[338906388,1727055032230,-168.75887935,0.000129,2]
[338906389,1727055032239,-601.111324,0.000129,2]
[338906390,1727055032249,-2002.16,0.000129,2]
[338906391,1727055032258,-189.15284033,0.000129,2]
[338906392,1727055032272,-178.31780364,0.000129,2]
[338906393,1727055032282,-178.31780364,0.000129,2]
[338906394,1727055032291,-178.31780364,0.000129,2]
[338906395,1727055032300,-178.31780364,0.000129,2]
[338906396,1727055032309,-178.81,0.000129,2]
[338906397,1727055032322,-331.51394804,0.000129,2]
[338906398,1727055032331,-331.51394804,0.000129,2]
[338906399,1727055032341,-331.51394804,0.000129,2]
[338906400,1727055032350,-331.51394804,0.000129,2]
[338906401,1727055032358,-331.51394804,0.000129,2]
[338906402,1727055032368,-331.51394804,0.000129,2]
[338906403,1727055032377,-331.51394804,0.000129,2]
[338906404,1727055032387,-331.51394804,0.000129,2]
[338906405,1727055032396,-331.51394804,0.000129,2]
[338906406,1727055032406,-331.51394804,0.000129,2]
[338906407,1727055032415,-331.51394804,0.000129,2]
[338906408,1727055032424,-331.51394804,0.000129,2]
[338906409,1727055032433,-331.51394804,0.000129,2]
[338906410,1727055032443,-331.51394804,0.000129,2]
[338906411,1727055032452,-331.51394804,0.000129,2]
[338906412,1727055032461,-331.51394804,0.000129,2]
[338906413,1727055032471,-331.51394804,0.000129,2]
[338906414,1727055032480,-331.51394804,0.000129,2]
[338906415,1727055032489,-331.51394804,0.000129,2]
[338906416,1727055032499,-332.01,0.000129,2]
[338906417,1727055032508,-353.87770855,0.000129,2]
[338906418,1727055032523,-353.87770855,0.000129,2]
[338906419,1727055032534,-353.87770855,0.000129,2]
[338906420,1727055032544,-353.87770855,0.000129,2]
[338906421,1727055032553,-353.87770855,0.000129,2]
[338906422,1727055032563,-353.87770855,0.000129,2]
[338906423,1727055032572,-353.87770855,0.000129,2]
[338906424,1727055032582,-353.87770855,0.000129,2]
[338906425,1727055032591,-353.87770855,0.000129,2]
[338906426,1727055032600,-353.87770855,0.000129,2]
[338906427,1727055032609,-353.87770855,0.000129,2]
[338906428,1727055032618,-353.87770855,0.000129,2]
[338906429,1727055032627,-353.87770855,0.000129,2]
[338906430,1727055032637,-353.87770855,0.000129,2]
[338906431,1727055032646,-353.87770855,0.000129,2]
[338906432,1727055032655,-353.87770855,0.000129,2]
[338906433,1727055032665,-353.87770855,0.000129,2]
[338906434,1727055032674,-353.87770855,0.000129,2]
[338906435,1727055032683,-353.87770855,0.000129,2]
[338906436,1727055032693,-354.37,0.000129,2]
[338906437,1727055032702,-4993.20951687,0.000129,2]
[338906438,1727055032711,-150.0,0.00012902,2]
[338906439,1727055032721,-150.0,0.0001291,2]
[338906440,1727055032730,-150.0,0.00012934,2]
[338906441,1727055032740,-356.695542,0.00012938,2]
[338906442,1727055032749,-555.88005672,0.0001297,2]
[338906443,1727055032759,-275.52126727,0.00012973,2]
[338906444,1727055032772,-500.0,0.00012973,2]
[338906445,1727055032782,-500.0,0.00012973,2]
[338906446,1727055032792,-500.0,0.00012973,2]
[338906447,1727055032802,-172.9475821,0.00012989,2]
[338906448,1727055032811,-155.78,0.0001299,2]
[338906449,1727055032821,-1000.0,0.00012999,2]
[338906450,1727055032830,-500.0,0.00012999,2]
[338906451,1727055032839,-500.0,0.00012999,2]
[338906452,1727055032848,-375.91090728,0.00012999,2]
[338906453,1727055032857,-500.0,0.00012999,2]
[338906454,1727055032866,-500.0,0.00012999,2]
[338906455,1727055032876,-500.0,0.00012999,2]
[338906456,1727055032885,-500.0,0.00012999,2]
[338906457,1727055032894,-500.0,0.00012999,2]
[338906458,1727055032904,-500.0,0.00012999,2]
[338906459,1727055032913,-500.0,0.00012999,2]
[338906460,1727055032923,-500.0,0.00012999,2]
[338906461,1727055032932,-500.0,0.00012999,2]
[338906462,1727055032942,-500.0,0.00012999,2]
[338906463,1727055032952,-500.0,0.00012999,2]
[338906464,1727055032961,-500.0,0.00012999,2]
[338906465,1727055032970,-500.0,0.00012999,2]
[338906466,1727055032979,-500.0,0.00012999,2]
[338906467,1727055032989,-500.0,0.00012999,2]
[338906468,1727055032998,-500.0,0.00012999,2]
[338906469,1727055033007,-500.0,0.00012999,2]
[338906470,1727055033021,-500.0,0.00012999,2]
[338906471,1727055033033,-500.0,0.00012999,2]
[338906472,1727055033043,-500.0,0.00012999,2]
[338906473,1727055033052,-500.0,0.00012999,2]
[338906474,1727055033062,-500.0,0.00012999,2]
[338906475,1727055033071,-500.0,0.00012999,2]
[338906476,1727055033081,-192.77,0.00012999,2]
[338906477,1727055033091,-2000.0,0.00012999,2]
[338906478,1727055033100,-74157.70150638,0.00013,2]
[338906479,1727055033110,-16962.82056243,0.00013,2]
[338906480,1727055033124,-883.54995,0.00013,2]
[338906481,1727055033135,-846.47,0.00013,2]
[338906482,1727055033147,-350.2299999,0.00013,2]
[338906483,1727055033158,-24943.95981674,0.00013,2]
[338906484,1727055033170,-2426.83511,0.00013,2]
[338906485,1727055033182,-3201.75970489,0.00013,2]
[338906486,1727055033196,-10732.22235811,0.00013,2]
[338906487,1727055033207,-566.90961068,0.00013,2]
[338906488,1727055033218,-312.84406266,0.00013,2]
[338906489,1727055033230,-1571.71472992,0.00013,2]
[338906490,1727055033242,-638.85454997,0.00013,2]
[338906491,1727055033254,-45929.48712503,0.00013,2]
[338906492,1727055033268,-10914.74382902,0.00013,2]
[338906493,1727055033280,-463.41396371,0.00013,2]
[338906494,1727055033293,-7678.45479533,0.00013,2]
[338906495,1727055033305,-10977.721407,0.00013,2]
[338906496,1727055033319,-11506.71936319,0.00013,2]
[338906497,1727055033330,-31094.57336559,0.00013,2]
[338906498,1727055033342,-190797.48789669,0.00013,2]
[338906499,1727055033353,-892.21353019,0.00013,2]
[338906500,1727055034498,221.3564,0.0001198,2]
[338906501,1727055034675,150.5449753,0.00021999,120]
[338906502,1727055036826,154.54879384,0.00021999,120]
[338906503,1727055037775,-461.545,0.00012429,2]
[338906504,1727055037875,-688.45,0.00012429,2]
[338906505,1727055037884,-250.0,0.00012434,2]
[338906506,1727055037894,-567190.98205573,0.00013,2]
[338906507,1727055038124,-6903.18681663,0.00013,2]
[338906508,1727055038135,-27380.86779629,0.00013,2]
[338906509,1727055038146,-90772.02052324,0.00013,2]
[338906510,1727055038337,-288.70525727,0.00013,2]
[338906516,1727055039860,-400.07483383,0.00012542,2]
[338906517,1727055039872,-745.83403878,0.00012542,2]
[338906518,1727055039884,-5464.19112739,0.00012542,2]
[338906519,1727055039895,-1092.3161054,0.00012542,2]
[338906520,1727055039907,-1024.59572777,0.00012542,2]
[338906566,1727055042722,167.91458445,0.00021999,120]
[338906586,1727055042943,-4795.38116683,0.00012542,2]
[338906588,1727055042952,-500.0,0.00012973,2]
[338906589,1727055042961,-1788.93985525,0.00013,2]
[338906590,1727055042973,-5161.16,0.00013,2]
[338906591,1727055043051,-1309.9999992,0.00013,2]
[338906592,1727055043063,-5693.25,0.00013,2]
[338906713,1727055045602,-2062.63999954,0.00013,2]
[338906716,1727055045703,-2398.4,0.00013,2]
[338906717,1727055045715,-1194.27246,0.00013,2]
[338906718,1727055045817,-49455.27848982,0.00013,2]
[338906719,1727055045829,-9318.32713459,0.00013,2]
[338906720,1727055045840,-18698.1,0.00013,2]
[338906721,1727055045923,-353.28445342,0.00013,2]
[338906735,1727055047043,505.1649,0.0001198,2]
[338906736,1727055050196,383.89566191,0.00021999,120]
[338906737,1727055052886,238.67219605,0.00021999,120]
[338906738,1727055058762,312.71111006,0.00021999,120]
[338906739,1727055064845,510.43801847,0.00010663,2]
[338906740,1727055075983,154.26260677,0.00021999,120]
[338906741,1727055082348,268.8530188,0.00021999,120]
[338906742,1727055092791,154.34562548,0.00021999,120]
[338906743,1727055095060,192.45469673,0.00021999,120]
[338906744,1727055105137,184.97885658,0.00021999,120]
[338906745,1727055109526,273.56011226,0.00021999,120]
[338906746,1727055111769,201.66108303,0.00021999,120]
[338906747,1727055137026,2863.8304,0.0001198,2]
[338906748,1727055142381,261.1083,0.0001198,2]
[338906749,1727055148610,166.91136904,0.00021999,120]
[338906750,1727055148709,600.4699,0.00011979,2]
[338906751,1727055150129,292.00532493,0.00021999,120]
[338906752,1727055152455,207.73818958,0.00021999,120]
[338906753,1727055154756,167.5420173,0.00021999,120]
[338906754,1727055157392,290.10726918,0.00021999,120]
[338906755,1727055159451,181.37408659,0.00021999,120]
[338906756,1727055159979,500.0,0.00010663,2]
[338906757,1727055166245,440.51627767,0.00021999,120]
[338906758,1727055173303,2500.0,0.0001198,2]
[338906759,1727055174007,176.67451859,0.00021999,120]
[338906760,1727055176232,181.90874067,0.00021999,120]
[338906761,1727055180599,500.0,0.00021999,120]
[338906762,1727055180642,500.0,0.00021999,120]
[338906763,1727055180872,500.0,0.00021999,120]
[338906764,1727055181408,266.8006,0.00021999,120]
[338906765,1727055182405,206.67137932,0.00021999,120]
[338906766,1727055182643,365.26699437,0.00021999,120]
[338906767,1727055195319,405.61409958,0.00021999,120]
[338906768,1727055195938,207.53492711,0.00021999,120]
[338906769,1727055198375,500.0,0.00021999,120]
[338906770,1727055198683,290.92349112,0.00021999,120]
[338906771,1727055205337,502.63871,0.00021999,120]
[338906772,1727055207874,207.36956822,0.00021999,120]
[338906773,1727055208441,2000.0,0.00021999,120]
[338906774,1727055208592,152.90490782,0.00021999,120]
[338906775,1727055211862,172.46363573,0.00021999,120]
[338906776,1727055212669,500.0,0.00021999,120]
[338906777,1727055213420,190.21507657,0.00021999,120]
[338906778,1727055216349,154.39451281,0.00021999,120]
[338906779,1727055220627,213.44850082,0.00021999,120]
[338906780,1727055223850,279.87668276,0.00021999,120]
[338906781,1727055237195,269.13657117,0.00021999,120]
[338906782,1727055239817,198.05517702,0.00021999,120]
[338906783,1727055242242,220.37295033,0.00021999,120]
[338906784,1727055242534,220.23082596,0.00021999,120]
[338906785,1727055244028,165.80700527,0.00021999,120]
[338906786,1727055244922,196.7326305,0.00021999,120]
[338906787,1727055250164,500.0,0.00010663,2]
[338906788,1727055260737,248.3361971,0.00021999,120]
[338906789,1727055272312,220.76253152,0.00021999,120]
[338906790,1727055275994,389.70293312,0.00021999,120]
[338906791,1727055307717,166.83,0.00010959,2]
[338906792,1727055412106,255.06,0.00012019,2]
[338906793,1727055412564,1000.0,0.00012019,2]
[338906794,1727055430026,422.75,0.00012019,2]
[338906797,1727055452256,164.46041746,0.00021999,120]
[338906802,1727055491987,5194.16,0.00012022,2]
[338906807,1727055537480,200.0,0.00012008,2]
[338906808,1727055542507,3754.38,0.00012008,2]
[338906811,1727055572049,1000.0,0.00012008,2]
[338906813,1727055591900,186.5738,0.00022,120]
[338906814,1727055597613,297.94,0.00010085,2]
[338906815,1727055656516,499.38,0.00011971,2]
[338906816,1727055698803,150.0,0.00011971,2]
[338906817,1727055718008,-150.0,0.00012031,2]
[338906818,1727055718403,-150.0,0.00012031,2]
[338906819,1727055720007,-150.0,0.00012031,2]
[338906820,1727055720648,-150.0,0.00012031,2]
[338906821,1727055723174,-150.0,0.00012031,2]
[338906822,1727055739340,-49.0,0.00012031,2]
[338906823,1727055739360,-101.0,0.00012031,2]
[338906824,1727055740220,-150.0,0.00012031,2]
[338906825,1727055740732,-150.0,0.00012031,2]
[338906826,1727055741143,-150.0,0.00012031,2]
[338906827,1727055741563,-150.0,0.00012031,2]
[338906828,1727055760765,452.65142079,0.00010663,2]
[338906829,1727055776407,5879.9,0.00012,2]
[338906830,1727055783357,664.68,0.00011947,2]
[338906831,1727055798701,250.0,0.00011973,2]
[338906832,1727055801081,317.58671348,0.00010663,2]
[338906833,1727055810329,157.37,0.00012009,2]
[338906834,1727055867525,250.0,0.00012009,2]
[338906835,1727055906384,159.1580595,0.00011688,2]
[338906836,1727055907088,250.0,0.00012009,2]
[338906837,1727055915854,153.92241313,0.00011688,2]
[338906838,1727055949932,187.65,0.00011996,2]
[338906839,1727055950992,248.38,0.00011796,2]
[338906898,1727056025129,153.92,0.00010959,2]
[338906910,1727056148439,283.04,0.00010104,2]
[338906916,1727056231878,-96.66672432,0.00012031,2]
[338906917,1727056231887,-913.37,0.000121,2]
[338906918,1727056231897,-283.04,0.00012368,2]
[338906919,1727056231907,-168.35,0.00012445,2]
[338906921,1727056231916,-150.0,0.00012521,2]
[338906923,1727056231925,-150.0,0.00012541,2]
[338906925,1727056231935,-133.82818054,0.00012542,2]
[338906927,1727056231947,-1128.17181946,0.00012542,2]
[338906929,1727056231956,-625.0,0.00012542,2]
[338906931,1727056231965,-448.0,0.00012542,2]
[338906933,1727056231974,-1549.0,0.00012542,2]
[338906935,1727056231983,-811.235,0.00012542,2]
[338906937,1727056231993,-559.384,0.00012542,2]
[338906939,1727056232002,-554.461,0.00012542,2]
[338906941,1727056232011,-1907.916,0.00012542,2]
[338906943,1727056232020,-1917.735,0.00012542,2]
[338906945,1727056232028,-808.0,0.00012542,2]
[338906947,1727056232038,-248.676,0.00012542,2]
[338906949,1727056232047,-3354.803,0.00012542,2]
[338906951,1727056232056,-150.767,0.00012542,2]
[338906953,1727056232065,-1147.0,0.00012542,2]
[338906955,1727056232074,-150.0,0.00012542,2]
[338906957,1727056232083,-13490.0,0.00012542,2]
[338906959,1727056232093,-5868.0,0.00012542,2]
[338906961,1727056232102,-229.876,0.00012542,2]
[338906963,1727056232110,-262.537,0.00012542,2]
[338906965,1727056232119,-163.52,0.00012556,2]
[338906967,1727056232129,-799.0,0.00012602,2]
[338906969,1727056232139,-5800.0,0.00012875,2]
[338906971,1727056232148,-1220.03,0.00012875,2]
[338906973,1727056232157,-881.43,0.00012875,2]
[338906975,1727056232166,-299.99,0.00012875,2]
[338906976,1727056232175,-499.99,0.00012875,2]
[338906977,1727056232184,-1000.0,0.00012877,2]
[338906978,1727056232193,-1010.52180789,0.00012877,2]
[338906979,1727056232202,-5800.0,0.00012883,2]
[338906980,1727056232211,-5800.0,0.00012891,2]
[338906981,1727056232220,-518.053,0.00012899,2]
[338906982,1727056232230,-180.051,0.00012899,2]
[338906983,1727056232239,-5800.0,0.000129,2]
[338906984,1727056232248,-2005.0052,0.000129,2]
[338906985,1727056232257,-500.0,0.000129,2]
[338906986,1727056232266,-198.6922,0.000129,2]
[338906987,1727056232276,-2034.5955,0.000129,2]
[338906988,1727056232285,-1015.30646,0.000129,2]
[338906989,1727056232294,-183.81275078,0.000129,2]
[338906990,1727056232302,-183.81275078,0.000129,2]
[338906991,1727056232312,-183.81275078,0.000129,2]
[338906992,1727056232321,-184.31,0.000129,2]
[338906993,1727056232330,-265.33278886,0.000129,2]
[338906994,1727056232339,-265.33278886,0.000129,2]
[338906995,1727056232348,-2500.0,0.000129,2]
[338906996,1727056232358,-265.33278886,0.000129,2]
[338906997,1727056232367,-265.33278886,0.000129,2]
[338906998,1727056232376,-265.33278886,0.000129,2]
[338906999,1727056232385,-265.33278886,0.000129,2]
[338907000,1727056232394,-265.33278886,0.000129,2]
[338907001,1727056232403,-265.33278886,0.000129,2]
[338907002,1727056232412,-265.33278886,0.000129,2]
[338907003,1727056232421,-265.33278886,0.000129,2]
[338907004,1727056232431,-265.33278886,0.000129,2]
[338907005,1727056232439,-265.33278886,0.000129,2]
[338907006,1727056232450,-265.33278886,0.000129,2]
[338907007,1727056232459,-265.33278886,0.000129,2]
[338907008,1727056232468,-935.49959798,0.000129,2]
[338907009,1727056232477,-265.33278886,0.000129,2]
[338907010,1727056232487,-265.33278886,0.000129,2]
[338907011,1727056232497,-265.33278886,0.000129,2]
[338907012,1727056232506,-265.33278886,0.000129,2]
[338907013,1727056232515,-265.33278886,0.000129,2]
[338907014,1727056232524,-265.83,0.000129,2]
[338907015,1727056232532,-283.23255277,0.000129,2]
[338907016,1727056232542,-283.23255277,0.000129,2]
[338907017,1727056232551,-283.23255277,0.000129,2]
[338907018,1727056232560,-283.23255277,0.000129,2]
[338907019,1727056232569,-283.23255277,0.000129,2]
[338907020,1727056232578,-283.23255277,0.000129,2]
[338907021,1727056232587,-283.23255277,0.000129,2]
[338907022,1727056232596,-283.23255277,0.000129,2]
[338907023,1727056232606,-283.23255277,0.000129,2]
[338907024,1727056232615,-283.23255277,0.000129,2]
[338907025,1727056232624,-283.23255277,0.000129,2]
[338907026,1727056232634,-283.23255277,0.000129,2]
[338907027,1727056232643,-283.23255277,0.000129,2]
[338907028,1727056232652,-283.23255277,0.000129,2]
[338907029,1727056232661,-283.23255277,0.000129,2]
[338907030,1727056232670,-283.23255277,0.000129,2]
[338907031,1727056232679,-283.23255277,0.000129,2]
[338907032,1727056232688,-283.23255277,0.000129,2]
[338907033,1727056232699,-283.23255277,0.000129,2]
[338907034,1727056232708,-283.73,0.000129,2]
[338907035,1727056232717,-168.88435695,0.000129,2]
[338907036,1727056232727,-10078.58702409,0.000129,2]
[338907037,1727056232735,-2589.811734,0.00012938,2]
[338907038,1727056232745,-168.919058,0.00012938,2]
[338907039,1727056232754,-156.569444,0.00012938,2]
[338907040,1727056232764,-287.094399,0.00012938,2]
[338907041,1727056232773,-258.369335,0.00012938,2]
[338907042,1727056232782,-500.0,0.00012973,2]
[338907043,1727056232791,-500.0,0.00012973,2]
[338907044,1727056232801,-296.32415384,0.00012973,2]
[338907045,1727056232813,-153.72,0.0001299,2]
[338907046,1727056232822,-902.87552517,0.00012999,2]
[338907047,1727056232831,-1301.82344774,0.00012999,3]
[338907048,1727056232840,-1301.82344774,0.00012999,3]
[338907049,1727056232851,-2004.61223451,0.00012999,2]
[338907050,1727056232860,-9819.171,0.00013,2]
[338907051,1727056232869,-55721.8213502,0.00013,2]
[338907052,1727056232880,-38429.43655862,0.00013,2]
[338907053,1727056232889,-176459.24220052,0.00013,2]
[338907054,1727056232901,-49600.00000006,0.00013,2]
[338907055,1727056232912,-2204.70442374,0.00013,2]
[338907056,1727056232923,-29063.5,0.00013,2]
[338907057,1727056232938,-291.65,0.00013,2]
[338907058,1727056232950,-1598.49248014,0.00013,2]
[338907059,1727056232962,-1903.58191562,0.00013,2]